bitfinex/quotes_ETHUSD_20230118
["timestamp","ask_amount","ask_price","bid_price","bid_amount"]
[1674082125311,10.3883,1529.4,1529.3,0.02693683]
[1674082125887,1.5,1529.3,1528.7,0.066]
[1674082126156,3.078,1528.8,1528.5,0.066]
[1674082126306,2.61628,1528.9,1528.5,1.43315971]
[1674082126307,5.32988,1528.9,1528.5,1.43315971]
[1674082126516,1.527,1528.6,1528.5,1.43315971]
[1674082126759,1.598,1528.8,1528.6,0.89622084]
[1674082126990,1.524,1528.7,1528.6,0.89622084]
[1674082127207,3.063,1528.7,1528.6,0.89622084]
[1674082127565,3.063,1528.7,1528.6,0.92315767]
[1674082127771,3.787545,1528.7,1528.6,0.92315767]
[1674082128031,5.287545,1528.7,1528.6,0.92315767]
[1674082128244,3.129,1528.7,1528.6,0.92315767]
[1674082128427,3.063,1528.7,1528.6,0.92315767]
[1674082129094,3.063,1528.7,1528.6,2.37771093]
[1674082129095,1.539,1528.7,1528.6,2.37771093]
[1674082129788,1.539,1528.7,1528.6,0.92315767]
[1674082133429,1.539,1528.7,1528.6,2.37771093]
[1674082133749,1.539,1528.7,1528.6,2.61548202]
[1674082135797,1.524,1528.8,1528.6,2.61548202]
[1674082140885,1.524,1528.8,1528.7,1.45027398]
[1674082141787,2.0956,1529.0,1528.7,1.45027398]
[1674082142149,1.598,1529.1,1528.8,1.43743786]
[1674082142340,1.532,1529.1,1528.8,1.43743786]
[1674082142555,4.14792,1529.1,1528.8,1.43743786]
[1674082144990,4.14792,1529.1,1528.9,1.42888184]
[1674082146515,4.14992,1529.1,1528.9,1.42888184]
[1674082146679,4.14792,1529.1,1528.9,1.42888184]
[1674082147887,4.14792,1529.1,1529.0,1.42460425]
[1674082148131,2.61592,1529.1,1529.0,1.42460425]
[1674082148747,2.61592,1529.1,1529.0,1.42210799]
[1674082150999,2.71379,1529.2,1529.0,1.42210799]
[1674082151153,4.14872,1529.3,1529.1,2.62505108]
[1674082151154,4.21465,1529.3,1529.1,2.62505108]
[1674082151544,2.61565,1529.3,1529.2,1.40500043]
[1674082151671,3.10615,1529.3,1529.2,1.40500043]
[1674082151884,2.61565,1529.3,1529.2,1.40500043]
[1674082153821,5.2313,1529.3,1529.2,1.40500043]
[1674082154142,6.8363,1529.3,1529.2,1.40500043]
[1674082156830,4.22065,1529.3,1529.2,1.40500043]
[1674082157038,4.15465,1529.3,1529.2,1.40500043]
[1674082159353,6.83622,1529.3,1529.2,1.40500043]
[1674082161346,4.22057,1529.3,1529.2,1.40500043]
[1674082161683,4.15457,1529.3,1529.2,1.40500043]
[1674082161850,6.77014,1529.3,1529.2,1.40500043]
[1674082162060,5.29714,1529.3,1529.2,1.40500043]
[1674082163081,7.91271,1529.3,1529.2,1.40500043]
[1674082167046,5.29714,1529.3,1529.2,1.40500043]
[1674082168103,7.91271,1529.3,1529.2,1.40500043]
[1674082171374,8.92631872,1529.3,1529.2,1.40500043]
[1674082172030,9.61069592,1529.3,1529.2,1.40500043]
[1674082172364,11.14969592,1529.3,1529.2,1.40500043]
[1674082172519,11.14969592,1529.3,1529.1,1.21149744]
[1674082172731,12.17596466,1529.3,1529.1,1.21149744]
[1674082173231,1.21759647,1529.2,1529.1,1.21149744]
[1674082173380,5.43047367,1529.2,1529.1,1.21149744]
[1674082173588,3.99647367,1529.2,1529.1,1.21149744]
[1674082173835,6.54621367,1529.2,1529.1,1.21149744]
[1674082174170,6.61221367,1529.2,1529.1,1.21149744]
[1674082174844,11.84369367,1529.2,1529.1,1.21149744]
[1674082175509,13.68558521,1529.2,1529.1,1.20896975]
[1674082176262,12.18558521,1529.2,1529.1,1.20896975]
[1674082176472,11.84479774,1529.2,1529.1,1.20896975]
[1674082176861,12.87106648,1529.2,1529.1,1.20896975]
[1674082177741,12.18558521,1529.2,1529.1,1.20896975]
[1674082177905,12.8709995,1529.2,1529.1,1.20896975]
[1674082178114,12.87099433,1529.2,1529.1,1.20896975]
[1674082178324,12.18558521,1529.2,1529.1,1.20896975]
[1674082179112,12.87105051,1529.2,1529.1,1.20896975]
[1674082179261,12.38055087,1529.2,1529.1,1.20896975]
[1674082179639,12.3804691,1529.2,1529.1,1.20896975]
[1674082180002,11.69508521,1529.2,1529.1,1.20896975]
[1674082180259,12.38046945,1529.2,1529.1,1.20896975]
[1674082180872,12.38046675,1529.2,1529.1,1.20896975]
[1674082181382,11.69508521,1529.2,1529.1,1.20896975]
[1674082181613,12.38046639,1529.2,1529.1,1.20896975]
[1674082181820,11.35411289,1529.2,1529.1,1.20896975]
[1674082182042,12.38040494,1529.2,1529.1,1.20896975]
[1674082182462,12.38037249,1529.2,1529.1,1.20896975]
[1674082182680,13.19508521,1529.2,1529.1,1.20896975]
[1674082183003,13.53717479,1529.2,1529.1,1.20896975]
[1674082183644,13.53487989,1529.2,1529.1,1.20896975]
[1674082183790,14.5625644,1529.2,1529.1,1.20896975]
[1674082184537,17.02537989,1529.2,1529.1,1.20896975]
[1674082184785,17.25537989,1529.2,1529.1,1.20896975]
[1674082186481,18.28276535,1529.2,1529.1,1.20896975]
[1674082186645,22.07412748,1529.2,1529.1,3.37896975]
[1674082186839,1.5,1529.1,1528.9,0.066]
[1674082187046,10.06818969,1529.0,1528.6,31.25915767]
[1674082187260,1.539,1528.8,1528.6,0.98915767]
[1674082187575,1.539,1528.8,1528.6,0.92315767]
[1674082188184,7.8498,1528.7,1528.6,0.92315767]
[1674082188479,9.116327,1528.7,1528.6,0.92315767]
[1674082189887,10.643327,1528.7,1528.6,0.92315767]
[1674082193201,10.643327,1528.7,1528.6,0.93237867]
[1674082207721,7.9158,1528.7,1528.6,0.93237867]
[1674082208455,9.4548,1528.7,1528.6,0.93237867]
[1674082209484,7.9158,1528.7,1528.6,0.93237867]
[1674082210408,7.9158,1528.7,1528.6,0.03615783]
[1674082211567,7.9158,1528.7,1528.6,0.03403363]
[1674082213145,7.6658,1528.7,1528.6,0.03403363]
[1674082213791,5.0492,1528.7,1528.6,1.18403363]
[1674082214250,5.0492,1528.7,1528.6,0.03403363]
[1674082214949,4.7992,1528.7,1528.6,0.03403363]
[1674082215162,4.7332,1528.7,1528.6,0.03403363]
[1674082216521,2.1166,1528.7,1528.6,2.63609062]
[1674082216748,2.1166,1528.7,1528.6,2.89969968]
[1674082218563,2.1166,1528.7,1528.6,1.74969968]
[1674082218767,2.1166,1528.7,1528.6,1.48609062]
[1674082227824,5.29914,1528.8,1528.6,1.48609062]
[1674082229392,7.91569,1528.8,1528.6,1.48609062]
[1674082229647,2.68255,1528.8,1528.6,1.48609062]
[1674082229829,2.61655,1528.8,1528.6,1.48609062]
[1674082232238,2.68228,1528.9,1528.7,1.44777772]
[1674082232390,3.30111969,1529.0,1528.8,1.43922003]
[1674082232391,3.36711969,1529.0,1528.8,1.43922003]
[1674082232754,3.79171969,1529.0,1528.8,1.43922003]
[1674082233328,3.79171969,1529.0,1528.9,0.19097561]
[1674082234186,12.44181224,1529.0,1528.9,0.19097561]
[1674082234388,12.50781224,1529.0,1528.9,0.19097561]
[1674082234595,14.00781224,1529.0,1528.9,0.19097561]
[1674082234922,16.059057,1529.0,1528.9,0.19097561]
[1674082235243,19.289057,1529.0,1528.9,0.19097561]
[1674082235453,19.289057,1529.0,1528.6,0.10003363]
[1674082235454,21.21244627,1529.0,1528.6,0.10003363]
[1674082235703,0.68532487,1528.7,1528.6,0.03403363]
[1674082235916,14.20941217,1528.7,1528.6,0.03403363]
[1674082236233,16.5240873,1528.7,1528.6,0.03403363]
[1674082236403,18.0900873,1528.7,1528.6,0.03403363]
[1674082236619,21.18989222,1528.7,1528.6,0.03403363]
[1674082238514,22.56054196,1528.7,1528.6,0.03403363]
[1674082238939,21.53255466,1528.7,1528.6,0.03403363]
[1674082239935,23.24586683,1528.7,1528.6,0.03403363]
[1674082240109,21.53255466,1528.7,1528.6,0.03403363]
[1674082240320,21.18972408,1528.7,1528.6,0.03403363]
[1674082241168,22.56037382,1528.7,1528.6,0.03403363]
[1674082241836,22.56027042,1528.7,1528.6,0.03403363]
[1674082242024,21.53255466,1528.7,1528.6,0.03403363]
[1674082242424,21.53255466,1528.7,1528.6,0.28075884]
[1674082243567,26.70596468,1528.7,1528.6,8.84e-06]
[1674082243778,25.22265251,1528.7,1528.4,0.03550226]
[1674082244035,5.46844524,1528.5,1528.4,0.03550226]
[1674082244193,8.58015653,1528.5,1528.4,0.03550226]
[1674082244403,13.76509839,1528.5,1528.4,0.03550226]
[1674082244654,14.27662186,1528.5,1528.4,0.03550226]
[1674082244994,17.48883298,1528.5,1528.4,0.03550226]
[1674082245164,17.60136765,1528.5,1528.4,0.03550226]
[1674082245369,23.51993515,1528.5,1528.4,0.03550226]
[1674082247373,22.01993515,1528.5,1528.4,0.03550226]
[1674082247559,20.99245862,1528.5,1528.4,0.03550226]
[1674082248001,18.77577112,1528.5,1528.4,0.03550226]
[1674082248577,19.46045862,1528.5,1528.4,0.03550226]
[1674082249674,16.84351862,1528.5,1528.4,0.03550226]
[1674082249884,7.91682,1528.5,1528.4,1.18550226]
[1674082250304,7.91682,1528.5,1528.4,0.03550226]
[1674082250927,7.91682,1528.5,1528.4,1.18550226]
[1674082251127,7.91682,1528.5,1528.4,0.03550226]
[1674082255407,7.91682,1528.5,1528.4,0.03550226]
[1674082255718,8.757572,1528.5,1528.4,0.03550226]
[1674082257159,5.29988,1528.5,1528.4,1.18550226]
[1674082257388,2.68294,1528.5,1528.3,0.03452044]
[1674082257542,2.61694,1528.5,1528.3,1.53452044]
[1674082258505,0.066,1528.6,1528.4,1.47345755]
[1674082258714,0.202,1528.8,1528.5,9.69360224]
[1674082258715,0.17,1528.8,1528.5,9.69360224]
[1674082258923,0.17,1528.8,1528.6,1.45205699]
[1674082259120,0.17,1528.8,1528.7,1.44777772]
[1674082259366,0.17,1528.8,1528.7,1.59255549]
[1674082259583,0.17,1528.8,1528.7,8.13405549]
[1674082259970,0.17,1528.8,1528.7,16.24155549]
[1674082260517,0.17,1528.8,1528.7,8.20005549]
[1674082260719,0.17,1528.8,1528.7,18.18555549]
[1674082261456,0.17,1528.8,1528.7,24.72705549]
[1674082261867,0.17,1528.8,1528.7,32.80455549]
[1674082262535,3.59546902,1529.3,1528.8,1.5]
[1674082262782,7.17260555,1529.3,1528.9,1.41783068]
[1674082263083,7.23860555,1529.3,1528.9,1.41783068]
[1674082263254,6.21112902,1529.3,1528.9,1.41783068]
[1674082264131,6.70162902,1529.3,1528.8,18.66427]
[1674082264345,6.70162902,1529.3,1528.8,12.1235]
[1674082264346,2.8408004,1529.2,1528.8,12.1235]
[1674082264560,2.61595,1529.1,1528.8,12.1235]
[1674082264707,2.61595,1529.1,1528.8,13.54988557]
[1674082264708,5.2319,1529.1,1528.8,13.54988557]
[1674082265072,5.2979,1529.1,1528.8,13.54988557]
[1674082265230,5.2979,1529.1,1528.8,12.1235]
[1674082265444,6.52334804,1529.1,1528.8,12.1235]
[1674082265895,10.63929804,1529.1,1528.8,12.1235]
[1674082266299,12.17629804,1529.1,1528.8,12.1235]
[1674082266654,1.5,1529.0,1528.8,0.066]
[1674082266820,7.84878,1528.9,1528.7,10.0515]
[1674082267037,7.91478,1528.9,1528.7,10.0515]
[1674082267226,7.91478,1528.9,1528.7,0.066]
[1674082267437,7.91478,1528.9,1528.6,12.2258]
[1674082267681,8.82802098,1528.9,1528.6,12.2258]
[1674082268944,0.066,1528.9,1528.6,13.66929873]
[1674082269154,3.8337998,1529.0,1528.6,13.66929873]
[1674082269373,3.8337998,1529.0,1528.6,20.21121873]
[1674082269646,6.4499698,1529.0,1528.6,13.66929873]
[1674082269856,0.64499698,1528.9,1528.6,12.2258]
[1674082270095,3.26134698,1528.9,1528.6,12.2258]
[1674082270610,8.49395698,1528.9,1528.6,12.2258]
[1674082270820,8.55995698,1528.9,1528.6,12.2258]
[1674082273435,0.8559957,1528.8,1528.6,12.2258]
[1674082274706,5.29861,1528.9,1528.6,12.2258]
[1674082277475,2.61652,1528.8,1528.6,12.2258]
[1674082286169,5.29861,1528.9,1528.6,12.2258]
[1674082286458,5.29861,1528.9,1528.6,12.22253101]
[1674082289925,7.91497,1528.9,1528.6,12.22253101]
[1674082290119,0.791497,1528.8,1528.6,12.22253101]
[1674082290292,2.61626,1528.9,1528.6,12.22253101]
[1674082290755,2.6166,1528.7,1528.6,12.22253101]
[1674082290919,2.6166,1528.7,1528.6,0.066]
[1674082291146,2.6166,1528.7,1528.5,9.404]
[1674082291728,2.6166,1528.7,1528.5,1.566]
[1674082292025,2.68251,1528.8,1528.5,2.95633655]
[1674082292201,3.17286,1528.9,1528.5,12.16543655]
[1674082292409,3.75994475,1528.9,1528.5,18.77377655]
[1674082292635,3.75994475,1528.9,1528.5,17.27377655]
[1674082293606,7.06098225,1528.9,1528.5,17.27377655]
[1674082293781,7.12698225,1528.9,1528.5,17.27377655]
[1674082294002,6.44229475,1528.9,1528.5,17.27377655]
[1674082294727,0.066,1528.9,1528.6,16.03152772]
[1674082294926,2.68215,1529.0,1528.6,14.59752772]
[1674082295137,2.61615,1529.0,1528.6,14.59752772]
[1674082295453,3.3008375,1529.0,1528.6,14.59752772]
[1674082295661,3.3008375,1529.0,1528.6,18.22849426]
[1674082296118,3.3008375,1529.0,1528.7,1.5]
[1674082296338,3.3008375,1529.0,1528.6,24.77042426]
[1674082296531,3.3008375,1529.0,1528.6,5.14474426]
[1674082296748,0.6846875,1528.9,1528.6,0.066]
[1674082296960,4.34431403,1529.0,1528.5,19.05961383]
[1674082297170,4.32831403,1529.0,1528.5,27.04546256]
[1674082297393,5.33794311,1529.0,1528.5,31.70756429]
[1674082297575,5.33794311,1529.0,1528.5,25.16521429]
[1674082297576,0.6846875,1528.9,1528.5,25.16521429]
[1674082297928,5.23261,1528.9,1528.6,1.44777772]
[1674082298085,0.066,1528.9,1528.6,7.98958772]
[1674082298298,8.02016311,1529.0,1528.6,8.05558772]
[1674082298532,0.6846875,1528.9,1528.6,8.05558772]
[1674082299062,8.02013311,1529.0,1528.6,8.05558772]
[1674082299270,0.6846875,1528.9,1528.6,8.05558772]
[1674082299661,3.3009575,1528.9,1528.6,8.05558772]
[1674082300144,0.6846875,1528.8,1528.6,0.066]
[1674082300288,5.9177275,1528.8,1528.5,9.2751]
[1674082300498,3.3671575,1528.8,1528.5,10.72715699]
[1674082300710,5.59507121,1528.9,1528.5,23.81183699]
[1674082300949,4.56759468,1528.9,1528.5,25.5160476]
[1674082301180,4.50159468,1528.9,1528.5,25.5160476]
[1674082301415,0.6846875,1528.9,1528.6,9.48946772]
[1674082301605,0.6846875,1528.9,1528.6,9.55546772]
[1674082301782,4.37646658,1529.0,1528.6,14.59539772]
[1674082301970,0.6846875,1528.9,1528.6,14.59739772]
[1674082302394,0.6846875,1528.9,1528.6,18.08319771]
[1674082302601,4.39431403,1529.0,1528.6,19.78727878]
[1674082302868,0.6846875,1529.0,1528.6,19.78727157]
[1674082303020,0.6846875,1529.0,1528.7,3.41794719]
[1674082303232,1.77816403,1529.1,1528.8,1.5]
[1674082303436,1.71416403,1529.1,1528.8,2.92638557]
[1674082303653,1.71216403,1529.1,1528.8,9.46727557]
[1674082303917,1.71216403,1529.1,1528.8,9.53327557]
[1674082304285,1.71216403,1529.1,1528.8,20.72270084]
[1674082304725,1.71216403,1529.1,1528.9,1.42638557]
[1674082304919,1.71216403,1529.2,1529.0,1.42210799]
[1674082305165,0.6846875,1529.2,1529.0,14.50254799]
[1674082305378,0.88187902,1529.3,1529.1,1.5]
[1674082305553,0.88187902,1529.3,1529.1,8.03965]
[1674082305924,0.88187902,1529.3,1529.1,6.60565]
[1674082306232,0.88187902,1529.3,1529.1,8.01065043]
[1674082306462,0.19719152,1529.3,1529.2,1.40500043]
[1674082306662,0.19719152,1529.3,1529.2,7.94436043]
[1674082306812,0.19719152,1529.3,1529.2,14.54972043]
[1674082307022,0.19719152,1529.3,1529.2,16.04972043]
[1674082307268,0.19719152,1529.3,1529.2,3.44972759]
[1674082307443,0.19719152,1529.3,1529.2,9.92308759]
[1674082307647,0.19719152,1529.3,1529.2,9.93508759]
[1674082307907,0.19719152,1529.3,1529.2,10.13950259]
[1674082308491,0.19719152,1529.3,1529.2,8.16077543]
[1674082308703,0.19719152,1529.3,1529.2,14.70013543]
[1674082309025,0.19719152,1529.3,1529.2,21.23949543]
[1674082309471,0.21492128,1529.5,1529.2,26.99647467]
[1674082309658,0.21492128,1529.5,1529.4,19.61553]
[1674082309873,0.21492128,1529.5,1529.4,17.13851045]
[1674082310099,0.21492128,1529.5,1529.4,17.20451045]
[1674082310701,0.21492128,1529.5,1529.4,10.66600045]
[1674082311541,0.21492128,1529.5,1529.4,17.20451045]
[1674082312381,0.21492128,1529.5,1529.4,18.73051045]
[1674082312597,0.19773586,1529.7,1529.5,10.28905104]
[1674082312862,0.19773586,1529.7,1529.6,33.67072796]
[1674082313074,0.19773586,1529.7,1529.6,37.44312796]
[1674082313397,0.19773586,1529.7,1529.6,37.45712796]
[1674082313536,0.19773586,1529.7,1529.6,51.45712796]
[1674082313745,0.21492128,1529.9,1529.7,9.954]
[1674082314009,0.21492128,1529.9,1529.8,29.72735692]
[1674082314169,2.22348419,1530.0,1529.8,29.79335692]
[1674082314381,2.22348419,1530.0,1529.9,14.50849485]
[1674082314382,0.40988419,1530.0,1529.9,14.50849485]
[1674082314637,0.40988419,1530.0,1529.9,34.87719275]
[1674082315907,0.40988419,1530.0,1529.9,22.23123485]
[1674082316222,0.40988419,1530.0,1529.9,29.14723485]
[1674082316441,0.40988419,1530.0,1529.9,33.37719275]
[1674082316613,0.40988419,1530.0,1529.9,29.14723485]
[1674082316951,0.40988419,1530.0,1529.9,33.37719275]
[1674082317545,0.40988419,1530.0,1529.9,29.14723485]
[1674082318176,0.40988419,1530.0,1529.9,33.37719275]
[1674082320530,0.40988419,1530.0,1529.9,27.60923485]
[1674082320684,0.40988419,1530.0,1529.9,31.83919275]
[1674082320893,0.40988419,1530.0,1529.9,27.60923485]
[1674082321632,0.40988419,1530.0,1529.9,31.83919275]
[1674082321838,0.40988419,1530.0,1529.9,33.36319275]
[1674082322303,0.40988419,1530.0,1529.9,29.13323485]
[1674082322513,0.40988419,1530.0,1529.9,27.60923485]
[1674082324610,0.35988419,1530.0,1529.9,27.60923485]
[1674082327371,0.35988419,1530.0,1529.9,20.69323485]
[1674082327586,0.35988419,1530.0,1529.9,20.46323485]
[1674082327850,0.35988419,1530.0,1529.9,19.773882]
[1674082329388,0.35988419,1530.0,1529.9,16.79454631]
[1674082329543,1e-08,1530.0,1529.9,16.79454631]
[1674082329752,1e-08,1530.0,1529.9,23.33091631]
[1674082330329,1e-08,1530.0,1529.9,20.33091631]
[1674082331656,1e-08,1530.0,1529.9,23.33091631]
[1674082331865,1e-08,1530.0,1529.9,27.16188794]
[1674082336273,1e-08,1530.0,1529.9,23.33091631]
[1674082336689,1e-08,1530.0,1529.9,23.32664404]
[1674082337138,0.18945445,1530.1,1530.0,21.10782]
[1674082337348,0.18945445,1530.1,1530.0,20.31681031]
[1674082338013,0.18945445,1530.1,1530.0,33.36111031]
[1674082338316,0.18945445,1530.1,1530.0,37.65085834]
[1674082339375,0.18945445,1530.1,1530.0,37.64885834]
[1674082339527,0.18945445,1530.1,1530.0,37.65085834]
[1674082340305,0.18945445,1530.1,1530.0,41.86659556]
[1674082340526,0.18945445,1530.1,1530.0,45.256999]
[1674082341217,0.18945445,1530.1,1530.0,44.86659556]
[1674082341962,0.18945445,1530.1,1530.0,46.39759556]
[1674082342176,0.18945445,1530.1,1530.0,44.86659556]
[1674082342365,0.66129738,1530.5,1530.1,0.27287928]
[1674082342366,0.17119738,1530.5,1530.1,0.27287928]
[1674082342732,0.17119738,1530.5,1530.2,20.2266359]
[1674082342978,0.17119738,1530.5,1530.3,0.61736584]
[1674082343134,0.17119738,1530.5,1530.4,13.06846]
[1674082343463,0.17119738,1530.5,1530.4,20.27751658]
[1674082343781,0.17119738,1530.5,1530.4,21.77751658]
[1674082344357,0.17119738,1530.5,1530.4,20.27751658]
[1674082345158,0.17119738,1530.5,1530.4,22.15056762]
[1674082345776,0.17119738,1530.5,1530.4,22.14056762]
[1674082348464,0.17119738,1530.5,1530.4,25.14056762]
[1674082349521,0.59957,1530.7,1530.5,1.5]
[1674082349730,0.59957,1530.7,1530.6,20.19615979]
[1674082349944,0.59957,1530.7,1530.6,20.26215979]
[1674082351880,0.59957,1530.7,1530.6,20.26215979]
[1674082353494,0.59957,1530.7,1530.6,33.22855979]
[1674082361083,0.59957,1530.7,1530.6,26.69517979]
[1674082361721,0.59957,1530.7,1530.6,20.16179979]
[1674082362931,0.59957,1530.7,1530.6,26.69517979]
[1674082363504,0.59957,1530.7,1530.6,20.16179979]
[1674082363718,0.59957,1530.7,1530.6,33.22855979]
[1674082365978,0.59957,1530.7,1530.6,26.69517979]
[1674082367710,0.59957,1530.7,1530.6,33.22855979]
[1674082369525,0.59957,1530.7,1530.6,36.55141577]
[1674082374562,0.449303,1530.7,1530.6,36.55141577]
[1674082375610,0.449303,1530.7,1530.6,30.01803577]
[1674082378247,0.449303,1530.7,1530.6,33.01803577]
[1674082379295,0.449303,1530.7,1530.6,29.69517979]
[1674082380673,0.449303,1530.7,1530.6,23.16179979]
[1674082381118,0.449303,1530.7,1530.6,13.62841979]
[1674082381303,1.1339905,1530.7,1530.6,0.66201979]
[1674082381511,2.16146703,1530.7,1530.6,0.59601979]
[1674082381720,4.08703867,1530.7,1530.4,0.066]
[1674082381978,4.08703867,1530.7,1530.1,0.27287928]
[1674082381979,3.73526403,1530.6,1530.1,0.27287928]
[1674082382301,4.8362075,1530.5,1530.1,0.27287928]
[1674082382457,0.4901,1530.4,1530.2,0.6216359]
[1674082382941,2.0281,1530.4,1530.1,0.27287928]
[1674082383115,1.524,1530.3,1530.1,0.27287928]
[1674082383316,7.21826,1530.2,1530.1,0.27287928]
[1674082383693,7.29626,1530.2,1530.1,0.27287928]
[1674082383824,7.31026,1530.2,1530.1,0.27287928]
[1674082384034,8.455084,1530.2,1530.1,0.27287928]
[1674082384387,8.455084,1530.2,1529.8,2.42247127]
[1674082384594,1.538,1529.9,1529.8,0.03095334]
[1674082384768,7.25738,1529.9,1529.8,0.03095334]
[1674082384985,8.470955,1529.9,1529.8,0.03095334]
[1674082385403,9.970955,1529.9,1529.8,0.03095334]
[1674082385819,11.507955,1529.9,1529.8,0.03095334]
[1674082386276,14.507955,1529.9,1529.8,0.03095334]
[1674082388783,15.37469673,1529.9,1529.8,0.03095334]
[1674082388971,15.37469673,1529.9,1529.3,30.3403135]
[1674082388972,1.5,1529.8,1529.3,30.3403135]
[1674082389191,1.5,1529.8,1529.3,0.0703135]
[1674082389192,1.538,1529.4,1529.3,0.0703135]
[1674082389351,1.538,1529.4,1529.3,0.0043135]
[1674082389775,3.076,1529.4,1529.3,0.0043135]
[1674082390042,3.3836,1529.4,1529.3,0.0043135]
[1674082390406,3.8741,1529.4,1529.3,0.0043135]
[1674082391303,4.1041,1529.4,1529.3,0.0043135]
[1674082391472,7.1021,1529.4,1529.3,0.0043135]
[1674082391690,7.1681,1529.4,1529.3,0.0043135]
[1674082392027,10.45984759,1529.4,1529.1,0.03544999]
[1674082392349,1.538,1529.2,1529.1,0.03544999]
[1674082392566,2.0285,1529.2,1529.1,0.03544999]
[1674082393187,3.5285,1529.2,1529.1,0.03544999]
[1674082393348,11.75998,1529.2,1529.1,0.03544999]
[1674082393557,11.82598,1529.2,1529.1,0.03544999]
[1674082393830,13.54774648,1529.2,1529.1,0.03544999]
[1674082394044,15.07874648,1529.2,1529.1,0.03544999]
[1674082394187,15.30874648,1529.2,1529.1,0.03544999]
[1674082395580,15.30874648,1529.2,1529.0,0.02912361]
[1674082395581,1.5,1529.1,1529.0,0.02912361]
[1674082395794,8.2946,1529.1,1529.0,2.361e-05]
[1674082395975,10.43258541,1529.1,1529.0,2.361e-05]
[1674082396419,13.724333,1529.1,1529.0,2.361e-05]
[1674082396714,20.494153,1529.1,1529.0,2.361e-05]
[1674082396923,21.13089473,1529.1,1529.0,2.361e-05]
[1674082398621,21.13089473,1529.1,1528.5,0.05171755]
[1674082398832,4.15477,1528.6,1528.5,0.05171755]
[1674082400022,4.15677,1528.6,1528.5,0.05171755]
[1674082400181,4.15477,1528.6,1528.5,0.05171755]
[1674082402193,2.61677,1528.6,1528.5,0.05171755]
[1674082403124,3.17338,1528.7,1528.5,0.05171755]
[1674082403340,3.10738,1528.7,1528.5,0.05171755]
[1674082403556,2.61668,1528.7,1528.5,0.05171755]
[1674082403869,3.10738,1528.7,1528.5,0.05171755]
[1674082405177,0.4907,1528.7,1528.5,0.05171755]
[1674082405343,3.4907,1528.7,1528.5,0.05171755]
[1674082406096,3.0,1528.7,1528.5,0.05171755]
[1674082406423,0.066,1528.8,1528.5,0.81870124]
[1674082406758,4.64489,1528.9,1528.6,0.08187012]
[1674082407733,2.1266,1529.0,1528.6,0.836016]
[1674082407873,0.4906,1529.0,1528.7,0.74986717]
[1674082408088,7.21991,1529.1,1528.7,1.4872319]
[1674082408954,7.21991,1529.1,1528.7,2.9872319]
[1674082409168,7.21991,1529.1,1528.7,1.4872319]
[1674082409169,4.21991,1529.1,1528.7,1.4872319]
[1674082409387,2.0825,1529.2,1529.1,1.21153186]
[1674082409547,2.0165,1529.2,1529.1,1.21153186]
[1674082409752,2.486322,1529.2,1529.1,1.21153186]
[1674082410543,6.986322,1529.2,1529.1,1.21153186]
[1674082410694,7.282322,1529.2,1529.1,1.21153186]
[1674082411550,9.898062,1529.2,1529.1,1.21153186]
[1674082411954,12.513862,1529.2,1529.1,1.21153186]
[1674082412641,17.34160959,1529.2,1529.1,1.21153186]
[1674082412811,3.23416096,1529.1,1528.7,0.066]
[1674082413024,1.533,1528.8,1528.5,0.05171755]
[1674082413215,1.538,1528.7,1528.5,0.05171755]
[1674082413426,2.04087,1528.7,1528.5,0.05171755]
[1674082413864,5.23354,1528.6,1528.5,0.05171755]
[1674082414108,5.29954,1528.6,1528.5,0.05171755]
[1674082415650,6.83354,1528.6,1528.5,0.04969855]
[1674082417939,5.29954,1528.6,1528.5,0.04969855]
[1674082418150,2.68277,1528.6,1528.5,0.04969855]
[1674082418465,2.61677,1528.6,1528.5,0.04969855]
[1674082422415,3.560978,1528.6,1528.5,0.04969855]
[1674082424846,4.2086,1528.7,1528.5,0.04969855]
[1674082425014,4.1426,1528.7,1528.5,0.04969855]
[1674082425355,2.6166,1528.7,1528.5,0.04969855]
[1674082426512,0.066,1528.8,1528.5,0.04969855]
[1674082426726,4.64486,1528.9,1528.5,0.04969855]
[1674082426946,5.562546,1528.9,1528.5,0.04969855]
[1674082427099,5.628546,1528.9,1528.5,0.04969855]
[1674082427465,2.6165,1528.8,1528.5,0.04969855]
[1674082428797,0.066,1528.9,1528.6,1.89864821]
[1674082429003,2.6161,1529.0,1528.7,0.18986482]
[1674082429218,4.1161,1529.0,1528.7,0.18986482]
[1674082429429,5.52063071,1529.0,1528.7,0.18986482]
[1674082429798,4.08663071,1529.0,1528.6,25.95667414]
[1674082429932,4.02063071,1529.0,1528.6,25.95667414]
[1674082430142,4.02063071,1529.0,1528.6,21.11889225]
[1674082430411,4.02063071,1529.0,1528.6,19.41474414]
[1674082430620,4.02063071,1529.0,1528.6,22.25476669]
[1674082431400,4.02063071,1529.0,1528.6,19.41474414]
[1674082432408,6.63680071,1529.0,1528.7,1.13596281]
[1674082432570,6.70280071,1529.0,1528.7,1.13596281]
[1674082432987,6.70280071,1529.0,1528.6,12.87310414]
[1674082433193,6.70280071,1529.0,1528.6,15.8162965]
[1674082433985,6.70280071,1529.0,1528.7,1.13596594]
[1674082434136,6.70280071,1529.0,1528.6,15.8162965]
[1674082434574,9.72880071,1529.0,1528.6,12.87310414]
[1674082434768,8.22880071,1529.0,1528.6,12.87310414]
[1674082435019,8.22880071,1529.0,1528.7,1.13597594]
[1674082438074,9.72880071,1529.0,1528.7,1.13597594]
[1674082438246,9.72880071,1529.0,1528.6,13.56241886]
[1674082438477,9.72880071,1529.0,1528.6,12.87310414]
[1674082438891,5.61263071,1529.0,1528.7,1.13593784]
[1674082440732,0.066,1529.0,1528.8,0.74558874]
[1674082441077,3.17234,1529.2,1528.8,7.28647874]
[1674082441207,3.10634,1529.2,1528.8,7.35247874]
[1674082441559,3.10634,1529.2,1528.9,0.73275513]
[1674082441770,5.78784,1529.3,1528.9,13.81382513]
[1674082441984,0.066,1529.3,1529.0,0.72847783]
[1674082442153,4.67593,1529.4,1529.1,0.71992405]
[1674082442587,3.10593,1529.4,1529.1,7.25969405]
[1674082442772,3.10593,1529.4,1529.1,20.33509405]
[1674082446555,4.70972,1529.5,1529.1,20.33509405]
[1674082446766,4.64372,1529.5,1529.2,2.0335094]
[1674082447831,3.10572,1529.5,1529.2,2.73632923]
[1674082448080,0.4904,1529.5,1529.3,0.27363292]
[1674082448232,0.066,1529.6,1529.4,0.69854447]
[1674082448443,3.7166875,1529.8,1529.3,6.81244292]
[1674082448444,5.3206875,1529.8,1529.5,0.68999461]
[1674082448691,3.0,1529.7,1529.5,0.68999461]